[Event "Early-Titled-Tuesday-Blitz-January-16-2024"]
[Site "Chess.com"]
[Date "2024.01.16"]
[Round "11"]
[White "jinbojinbo"]
[Black "crazy_m_attack"]
[Result "0-1"]
[WhiteElo "2640"]
[BlackElo "2499"]
[TimeControl "180+1"]
[EndTime "10:10:23 PST"]
[Termination "crazy_m_attack won by resignation"]

1. e4 {[%clk 0:03:00.9]} 1... e5 {[%clk 0:02:59.9]} 2. Nf3 {[%clk 0:03:00.9]}
2... Nc6 {[%clk 0:03:00.4]} 3. Bb5 {[%clk 0:03:01.2]} 3... a6 {[%clk 0:03:00.8]}
4. Ba4 {[%clk 0:03:01.4]} 4... Nf6 {[%clk 0:03:01.3]} 5. O-O {[%clk 0:03:01.8]}
5... Be7 {[%clk 0:03:01.9]} 6. Re1 {[%clk 0:03:02.3]} 6... b5 {[%clk 0:03:02.6]}
7. Bb3 {[%clk 0:03:02.6]} 7... O-O {[%clk 0:03:03.3]} 8. c3 {[%clk 0:03:02.9]}
8... d5 {[%clk 0:03:03.9]} 9. exd5 {[%clk 0:03:03.2]} 9... Nxd5 {[%clk
0:03:04.8]} 10. Nxe5 {[%clk 0:03:03.7]} 10... Nxe5 {[%clk 0:03:05.7]} 11. Rxe5
{[%clk 0:03:04.1]} 11... c6 {[%clk 0:03:06.6]} 12. d3 {[%clk 0:03:01.7]} 12...
Bd6 {[%clk 0:03:06.9]} 13. Re1 {[%clk 0:03:01.8]} 13... Bf5 {[%clk 0:03:07.6]}
14. Qf3 {[%clk 0:02:59.3]} 14... Qh4 {[%clk 0:03:08.1]} 15. g3 {[%clk
0:02:58.7]} 15... Qh3 {[%clk 0:03:08.5]} 16. Be3 {[%clk 0:02:52.4]} 16... Bxd3
{[%clk 0:03:00.4]} 17. Nd2 {[%clk 0:02:33.6]} 17... Bf5 {[%clk 0:02:48.8]} 18.
Bxd5 {[%clk 0:02:25]} 18... cxd5 {[%clk 0:02:49.7]} 19. Bd4 {[%clk 0:02:21.5]}
19... Rad8 {[%clk 0:02:41.7]} 20. Re3 {[%clk 0:02:17.9]} 20... Bg4 {[%clk
0:02:37.9]} 21. Qg2 {[%clk 0:02:17.8]} 21... Qxg2+ {[%clk 0:02:36]} 22. Kxg2
{[%clk 0:02:17.7]} 22... f5 {[%clk 0:02:36.6]} 23. f4 {[%clk 0:02:15]} 23...
Rfe8 {[%clk 0:02:24.1]} 24. Rae1 {[%clk 0:02:14.4]} 24... Rxe3 {[%clk
0:02:24.1]} 25. Rxe3 {[%clk 0:02:15.3]} 25... Kf7 {[%clk 0:02:24.6]} 26. a3
{[%clk 0:02:11.9]} 26... Re8 {[%clk 0:02:19.3]} 27. Kf2 {[%clk 0:02:10.5]} 27...
Rxe3 {[%clk 0:02:18.5]} 28. Kxe3 {[%clk 0:02:11.4]} 28... g6 {[%clk 0:02:12.9]}
29. Nb3 {[%clk 0:02:10.9]} 29... Bd1 {[%clk 0:02:08.8]} 30. Na5 {[%clk
0:02:07.8]} 30... Bc2 {[%clk 0:02:03.4]} 31. Nb7 {[%clk 0:02:06.6]} 31... Be7
{[%clk 0:01:54.7]} 32. Bc5 {[%clk 0:02:04]} 32... Bf6 {[%clk 0:01:49.6]} 33. Bb4
{[%clk 0:01:59.8]} 33... d4+ {[%clk 0:01:21]} 34. cxd4 {[%clk 0:02:00.7]} 34...
Ke6 {[%clk 0:01:21.2]} 35. Bc3 {[%clk 0:01:28.3]} 35... Kd5 {[%clk 0:01:16.9]}
36. Kd2 {[%clk 0:01:25.5]} 36... Bb1 {[%clk 0:00:56.2]} 37. Ke3 {[%clk
0:01:17.7]} 37... Bc2 {[%clk 0:00:52.1]} 38. h3 {[%clk 0:01:10]} 38... Bd1
{[%clk 0:00:50]} 39. Nc5 {[%clk 0:01:04.6]} 39... a5 {[%clk 0:00:43.1]} 40. Nd3
{[%clk 0:01:04.5]} 40... Bc2 {[%clk 0:00:15.2]} 41. Ne1 {[%clk 0:01:04.1]} 41...
Be4 {[%clk 0:00:14]} 42. Nd3 {[%clk 0:00:13]} 42... Bxd3 {[%clk 0:00:13.9]} 43.
Kxd3 {[%clk 0:00:13.5]} 43... a4 {[%clk 0:00:14.2]} 44. g4 {[%clk 0:00:12.3]}
44... h5 {[%clk 0:00:10]} 45. gxf5 {[%clk 0:00:10.5]} 45... gxf5 {[%clk
0:00:09.9]} 46. Ke3 {[%clk 0:00:07.8]} 46... Kc4 {[%clk 0:00:04.3]} 47. Kd2
{[%clk 0:00:02.9]} 47... Bxd4 {[%clk 0:00:03.9]} 48. Kc2 {[%clk 0:00:03.2]}
48... Bxc3 {[%clk 0:00:02.7]} 49. bxc3 {[%clk 0:00:04.1]} 49... Kc5 {[%clk
0:00:03.3]} 50. Kd3 {[%clk 0:00:04.4]} 50... Kd5 {[%clk 0:00:03.4]} 51. Ke3
{[%clk 0:00:04.7]} 51... Kc4 {[%clk 0:00:03.9]} 52. Kd2 {[%clk 0:00:04.9]} 52...
Kb3 {[%clk 0:00:04.5]} 53. Kd3 {[%clk 0:00:04.8]} 53... Kxa3 {[%clk 0:00:05]}
54. Kd4 {[%clk 0:00:04.8]} 54... Kb2 {[%clk 0:00:04.3]} 55. Ke5 {[%clk
0:00:05.7]} 55... a3 {[%clk 0:00:04.9]} 56. Kxf5 {[%clk 0:00:06.6]} 56... a2
{[%clk 0:00:05.5]} 57. Kg5 {[%clk 0:00:07.5]} 57... a1=Q {[%clk 0:00:06.4]} 58.
f5 {[%clk 0:00:08.4]} 58... Qf1 {[%clk 0:00:05.4]} 59. Kxh5 {[%clk 0:00:09.3]}
59... Qxh3+ {[%clk 0:00:05.6]} 0-1

[Event "Early-Titled-Tuesday-Blitz-January-16-2024"]
[Site "Chess.com"]
[Date "2024.01.16"]
[Round "11"]
[White "Seochesspie"]
[Black "mishanick"]
[Result "0-1"]
[WhiteElo "2824"]
[BlackElo "3078"]
[TimeControl "180+1"]
[EndTime "10:10:27 PST"]
[Termination "mishanick won on time"]

1. c4 {[%clk 0:02:59.5]} 1... e6 {[%clk 0:02:54.7]} 2. g3 {[%clk 0:02:58.5]}
2... d5 {[%clk 0:02:55.6]} 3. Bg2 {[%clk 0:02:58.9]} 3... Nf6 {[%clk 0:02:56.1]}
4. Nf3 {[%clk 0:02:59.2]} 4... Be7 {[%clk 0:02:56.8]} 5. O-O {[%clk 0:02:58.7]}
5... O-O {[%clk 0:02:57.4]} 6. b3 {[%clk 0:02:58.8]} 6... b6 {[%clk 0:02:54.7]}
7. Bb2 {[%clk 0:02:57.8]} 7... Bb7 {[%clk 0:02:55.2]} 8. cxd5 {[%clk 0:02:57.5]}
8... Bxd5 {[%clk 0:02:52.9]} 9. Nc3 {[%clk 0:02:56.8]} 9... Bb7 {[%clk
0:02:53.6]} 10. d4 {[%clk 0:02:56.6]} 10... c5 {[%clk 0:02:54.2]} 11. Rc1 {[%clk
0:02:53.9]} 11... Nbd7 {[%clk 0:02:53.6]} 12. Qd3 {[%clk 0:02:48.2]} 12... cxd4
{[%clk 0:02:52.8]} 13. Qxd4 {[%clk 0:02:39.9]} 13... Nc5 {[%clk 0:02:52.2]} 14.
Rfd1 {[%clk 0:02:39.1]} 14... Qxd4 {[%clk 0:02:46.9]} 15. Nxd4 {[%clk
0:02:39.1]} 15... Bxg2 {[%clk 0:02:46.3]} 16. Kxg2 {[%clk 0:02:40]} 16... Rfc8
{[%clk 0:02:46.5]} 17. f3 {[%clk 0:02:29.9]} 17... Kf8 {[%clk 0:02:42.3]} 18.
Kf2 {[%clk 0:02:28.3]} 18... Ke8 {[%clk 0:02:42]} 19. Ndb5 {[%clk 0:02:22.6]}
19... Nb7 {[%clk 0:02:28]} 20. Na4 {[%clk 0:02:19.9]} 20... Nc5 {[%clk
0:02:19.3]} 21. Bxf6 {[%clk 0:02:12.1]} 21... gxf6 {[%clk 0:02:18.1]} 22. Nxc5
{[%clk 0:02:11.3]} 22... Bxc5+ {[%clk 0:02:16.5]} 23. Ke1 {[%clk 0:01:51.8]}
23... Ke7 {[%clk 0:02:13]} 24. e4 {[%clk 0:01:42.5]} 24... a6 {[%clk 0:02:04.4]}
25. Nd4 {[%clk 0:01:42.3]} 25... Ra7 {[%clk 0:01:42.6]} 26. Ke2 {[%clk
0:01:31.3]} 26... Rac7 {[%clk 0:01:42.2]} 27. Rc4 {[%clk 0:01:20.7]} 27... b5
{[%clk 0:01:40.8]} 28. Rc2 {[%clk 0:01:20.1]} 28... Ba3 {[%clk 0:01:24.9]} 29.
Rxc7+ {[%clk 0:01:17.1]} 29... Rxc7 {[%clk 0:01:24.6]} 30. f4 {[%clk 0:01:17.5]}
30... Bb4 {[%clk 0:01:15.1]} 31. Rd3 {[%clk 0:01:07.9]} 31... Rc1 {[%clk
0:01:12.6]} 32. Rd1 {[%clk 0:01:07.9]} 32... Rc8 {[%clk 0:01:06.9]} 33. Rd3
{[%clk 0:01:07.9]} 33... h5 {[%clk 0:01:07.2]} 34. Rd1 {[%clk 0:01:05.5]} 34...
Rc7 {[%clk 0:01:02.1]} 35. Rd3 {[%clk 0:01:05.4]} 35... Bc3 {[%clk 0:00:59.9]}
36. Rd1 {[%clk 0:01:01.8]} 36... b4 {[%clk 0:00:54.7]} 37. Rd3 {[%clk
0:01:00.3]} 37... Rc8 {[%clk 0:00:43.6]} 38. Rd1 {[%clk 0:01:00]} 38... a5
{[%clk 0:00:43.8]} 39. Rd3 {[%clk 0:00:58.7]} 39... h4 {[%clk 0:00:38.8]} 40.
gxh4 {[%clk 0:00:53.4]} 40... Bxd4 {[%clk 0:00:38.6]} 41. Rxd4 {[%clk
0:00:52.7]} 41... Rh8 {[%clk 0:00:39.2]} 42. Rd2 {[%clk 0:00:44.7]} 42... Rxh4
{[%clk 0:00:37.2]} 43. Kf3 {[%clk 0:00:45.6]} 43... Rh3+ {[%clk 0:00:37.5]} 44.
Kg4 {[%clk 0:00:25.7]} 44... Re3 {[%clk 0:00:37.8]} 45. Rd4 {[%clk 0:00:25.9]}
45... Re2 {[%clk 0:00:33.6]} 46. h4 {[%clk 0:00:26]} 46... Rxa2 {[%clk
0:00:34.2]} 47. Rc4 {[%clk 0:00:23.9]} 47... Rg2+ {[%clk 0:00:31]} 48. Kh5
{[%clk 0:00:19.9]} 48... Rg3 {[%clk 0:00:30.3]} 49. Rc5 {[%clk 0:00:19.3]} 49...
Rxb3 {[%clk 0:00:30.3]} 50. Rxa5 {[%clk 0:00:19.6]} 50... Rg3 {[%clk 0:00:30.9]}
51. Rb5 {[%clk 0:00:17]} 51... b3 {[%clk 0:00:30.9]} 52. Rb7+ {[%clk 0:00:17.2]}
52... Kd6 {[%clk 0:00:30.5]} 53. Rxf7 {[%clk 0:00:14.6]} 53... Kc6 {[%clk
0:00:30.5]} 54. Rf8 {[%clk 0:00:14.8]} 54... b2 {[%clk 0:00:28.3]} 55. Rb8
{[%clk 0:00:14.5]} 55... Rg2 {[%clk 0:00:28.4]} 56. Kh6 {[%clk 0:00:12.4]} 56...
Kc5 {[%clk 0:00:28.8]} 57. h5 {[%clk 0:00:11.1]} 57... Kd4 {[%clk 0:00:29.3]}
58. Rb4+ {[%clk 0:00:08.2]} 58... Kc3 {[%clk 0:00:29.5]} 59. Rb8 {[%clk
0:00:08.3]} 59... Kc2 {[%clk 0:00:26.6]} 60. Kh7 {[%clk 0:00:08.7]} 60... b1=Q
{[%clk 0:00:25.3]} 61. Rxb1 {[%clk 0:00:08.2]} 61... Kxb1 {[%clk 0:00:26.2]} 62.
h6 {[%clk 0:00:08.4]} 62... Kc2 {[%clk 0:00:26.6]} 63. Kh8 {[%clk 0:00:09.3]}
63... Kd3 {[%clk 0:00:26.6]} 64. h7 {[%clk 0:00:09]} 64... Rh2 {[%clk
0:00:20.8]} 65. f5 {[%clk 0:00:02.8]} 65... exf5 {[%clk 0:00:21.7]} 66. exf5
{[%clk 0:00:02.9]} 66... Ke4 {[%clk 0:00:21.9]} 0-1

[Event "Early-Titled-Tuesday-Blitz-January-16-2024"]
[Site "Chess.com"]
[Date "2024.01.16"]
[Round "11"]
[White "Herzog2012"]
[Black "PepeCuenca"]
[Result "1-0"]
[WhiteElo "2551"]
[BlackElo "2681"]
[TimeControl "180+1"]
[EndTime "10:10:27 PST"]
[Termination "Herzog2012 won on time"]

1. e4 {[%clk 0:03:00.9]} 1... d6 {[%clk 0:03:00.3]} 2. d4 {[%clk 0:02:56.3]}
2... Nf6 {[%clk 0:03:00.7]} 3. Nc3 {[%clk 0:02:56.4]} 3... e5 {[%clk 0:03:01.1]}
4. Nf3 {[%clk 0:02:54.8]} 4... Nbd7 {[%clk 0:03:01.1]} 5. Bc4 {[%clk 0:02:54.8]}
5... Be7 {[%clk 0:03:01.5]} 6. O-O {[%clk 0:02:54.7]} 6... O-O {[%clk
0:03:01.9]} 7. Re1 {[%clk 0:02:53.1]} 7... c6 {[%clk 0:03:02.4]} 8. a4 {[%clk
0:02:39.9]} 8... b6 {[%clk 0:03:02.8]} 9. Bg5 {[%clk 0:02:34]} 9... a6 {[%clk
0:03:02.7]} 10. Bb3 {[%clk 0:02:08.6]} 10... Rb8 {[%clk 0:03:01.7]} 11. Qe2
{[%clk 0:02:03.9]} 11... b5 {[%clk 0:03:01.7]} 12. Rad1 {[%clk 0:02:02.8]} 12...
Qc7 {[%clk 0:02:56.9]} 13. Nh4 {[%clk 0:02:01.1]} 13... exd4 {[%clk 0:02:43.7]}
14. Rxd4 {[%clk 0:01:43]} 14... c5 {[%clk 0:02:02.9]} 15. Rdd1 {[%clk
0:00:51.5]} 15... Ne5 {[%clk 0:01:32.5]} 16. axb5 {[%clk 0:00:36]} 16... c4
{[%clk 0:01:16.4]} 17. Ba2 {[%clk 0:00:21.7]} 17... axb5 {[%clk 0:01:15.3]} 18.
Nf5 {[%clk 0:00:18.8]} 18... Bxf5 {[%clk 0:00:44.2]} 19. exf5 {[%clk 0:00:18.6]}
19... h6 {[%clk 0:00:41.7]} 20. Bxf6 {[%clk 0:00:16.9]} 20... Bxf6 {[%clk
0:00:42.6]} 21. Nd5 {[%clk 0:00:16]} 21... Qd8 {[%clk 0:00:43]} 22. c3 {[%clk
0:00:11.7]} 22... Nd7 {[%clk 0:00:38.8]} 23. Bb1 {[%clk 0:00:09.8]} 23... Nb6
{[%clk 0:00:38.3]} 24. Nb4 {[%clk 0:00:05.5]} 24... Qd7 {[%clk 0:00:34.3]} 25.
Qf3 {[%clk 0:00:05.5]} 25... Rfe8 {[%clk 0:00:30.8]} 26. Be4 {[%clk 0:00:05.7]}
26... Qc7 {[%clk 0:00:28.8]} 27. Na6 {[%clk 0:00:05]} 27... Qa7 {[%clk
0:00:27.3]} 28. Nxb8 {[%clk 0:00:05.1]} 28... Qxb8 {[%clk 0:00:27.5]} 29. Bc6
{[%clk 0:00:05.2]} 29... Rd8 {[%clk 0:00:26.9]} 30. Bxb5 {[%clk 0:00:05]} 30...
d5 {[%clk 0:00:26.7]} 31. Bc6 {[%clk 0:00:02.6]} 31... Qd6 {[%clk 0:00:25.8]}
32. Re8+ {[%clk 0:00:02.9]} 32... Rxe8 {[%clk 0:00:24.8]} 33. Bxe8 {[%clk
0:00:03.8]} 33... Kf8 {[%clk 0:00:17.7]} 34. Bb5 {[%clk 0:00:03.9]} 34... Qc5
{[%clk 0:00:17.4]} 35. Ba6 {[%clk 0:00:04.4]} 35... d4 {[%clk 0:00:13.8]} 36.
cxd4 {[%clk 0:00:04]} 36... Bxd4 {[%clk 0:00:14.7]} 37. Qf4 {[%clk 0:00:03.9]}
37... Be5 {[%clk 0:00:12.5]} 38. Rd8+ {[%clk 0:00:03.2]} 38... Ke7 {[%clk
0:00:12.4]} 39. Qd2 {[%clk 0:00:03.6]} 39... Qc7 {[%clk 0:00:06.9]} 40. Rh8
{[%clk 0:00:02.8]} 40... Bxh2+ {[%clk 0:00:06.9]} 41. Kh1 {[%clk 0:00:03.4]}
41... Be5 {[%clk 0:00:07]} 42. Qb4+ {[%clk 0:00:03.3]} 42... Bd6 {[%clk
0:00:06.6]} 43. Qe1+ {[%clk 0:00:03.9]} 43... Kf6 {[%clk 0:00:06.1]} 44. Qc3+
{[%clk 0:00:03]} 44... Be5 {[%clk 0:00:06.2]} 45. Qh3 {[%clk 0:00:03.1]} 45...
Bf4 {[%clk 0:00:05.5]} 46. Qh4+ {[%clk 0:00:03.3]} 46... Bg5 {[%clk 0:00:06.2]}
47. Qd4+ {[%clk 0:00:03.8]} 47... Qe5 {[%clk 0:00:03.1]} 48. Qxb6+ {[%clk
0:00:03.5]} 48... Kxf5 {[%clk 0:00:02.9]} 49. Bc8+ {[%clk 0:00:03.7]} 49... Kf4
{[%clk 0:00:02.1]} 50. Qe3+ {[%clk 0:00:02.7]} 50... Qxe3 {[%clk 0:00:02.2]} 51.
fxe3+ {[%clk 0:00:03.6]} 51... Kxe3 {[%clk 0:00:03]} 52. Ba6 {[%clk 0:00:04.2]}
52... c3 {[%clk 0:00:01]} 53. bxc3 {[%clk 0:00:04]} 53... Kd2 {[%clk 0:00:01.7]}
54. Rg8 {[%clk 0:00:04.4]} 54... g6 {[%clk 0:00:01.4]} 55. c4 {[%clk 0:00:04.5]}
55... Kc3 {[%clk 0:00:01.6]} 56. c5 {[%clk 0:00:04.6]} 56... Bf4 {[%clk
0:00:01.3]} 57. c6 {[%clk 0:00:05]} 57... Kb4 {[%clk 0:00:01.6]} 58. Rf8 {[%clk
0:00:05.1]} 1-0

[Event "Early-Titled-Tuesday-Blitz-January-16-2024"]
[Site "Chess.com"]
[Date "2024.01.16"]
[Round "11"]
[White "emeli_chess"]
[Black "LeoWin2012"]
[Result "1-0"]
[WhiteElo "2438"]
[BlackElo "2250"]
[TimeControl "180+1"]
[EndTime "10:10:27 PST"]
[Termination "emeli_chess won by checkmate"]

1. d4 {[%clk 0:03:00.9]} 1... Nf6 {[%clk 0:02:54]} 2. c4 {[%clk 0:03:00.6]} 2...
e6 {[%clk 0:02:52.4]} 3. Nc3 {[%clk 0:03:00.8]} 3... d5 {[%clk 0:02:48.4]} 4.
cxd5 {[%clk 0:03:00.6]} 4... exd5 {[%clk 0:02:48]} 5. Bg5 {[%clk 0:03:00.3]}
5... c6 {[%clk 0:02:46]} 6. Qc2 {[%clk 0:03:00.1]} 6... Be7 {[%clk 0:02:45.1]}
7. e3 {[%clk 0:03:00]} 7... g6 {[%clk 0:02:42.8]} 8. Bd3 {[%clk 0:02:58.8]} 8...
h6 {[%clk 0:02:42.8]} 9. Bh4 {[%clk 0:02:56]} 9... Be6 {[%clk 0:02:41.5]} 10. h3
{[%clk 0:02:47.8]} 10... g5 {[%clk 0:02:40.9]} 11. Bg3 {[%clk 0:02:47.1]} 11...
Nbd7 {[%clk 0:02:40.5]} 12. Nf3 {[%clk 0:02:43.7]} 12... Qb6 {[%clk 0:02:36.1]}
13. Ne5 {[%clk 0:02:42.5]} 13... Nxe5 {[%clk 0:02:35.6]} 14. Bxe5 {[%clk
0:02:42.3]} 14... Rg8 {[%clk 0:02:25.8]} 15. g4 {[%clk 0:01:55.8]} 15... O-O-O
{[%clk 0:02:23.3]} 16. O-O-O {[%clk 0:01:45.9]} 16... Nd7 {[%clk 0:02:22.5]} 17.
Bg3 {[%clk 0:01:41.1]} 17... Rdf8 {[%clk 0:01:52.1]} 18. Kb1 {[%clk 0:01:37.7]}
18... h5 {[%clk 0:01:41.9]} 19. f3 {[%clk 0:01:36.2]} 19... h4 {[%clk
0:01:36.9]} 20. Bh2 {[%clk 0:01:35.7]} 20... Nb8 {[%clk 0:01:31]} 21. Rc1 {[%clk
0:01:32.9]} 21... Na6 {[%clk 0:01:27]} 22. Na4 {[%clk 0:01:30.9]} 22... Qa5
{[%clk 0:01:20.8]} 23. a3 {[%clk 0:01:24.4]} 23... Re8 {[%clk 0:00:52.8]} 24.
Qb3 {[%clk 0:01:23.1]} 24... Rd8 {[%clk 0:00:35.7]} 25. Rc3 {[%clk 0:01:21.9]}
25... Bd6 {[%clk 0:00:35.4]} 26. Bxd6 {[%clk 0:01:20.1]} 26... Rxd6 {[%clk
0:00:36.3]} 27. Rhc1 {[%clk 0:01:12]} 27... Nc7 {[%clk 0:00:31.4]} 28. Nc5
{[%clk 0:01:09.7]} 28... Qb6 {[%clk 0:00:28.9]} 29. Qa4 {[%clk 0:01:04]} 29...
Kb8 {[%clk 0:00:28.3]} 30. Rb3 {[%clk 0:01:01.2]} 30... Nb5 {[%clk 0:00:26.9]}
31. Bxb5 {[%clk 0:01:00.1]} 31... cxb5 {[%clk 0:00:27.8]} 32. Rxb5 {[%clk
0:01:00.2]} 32... Qc6 {[%clk 0:00:20.7]} 33. Rxb7+ {[%clk 0:00:57.3]} 33... Qxb7
{[%clk 0:00:19.7]} 34. Nxb7 {[%clk 0:00:56.9]} 34... Kxb7 {[%clk 0:00:20.6]} 35.
Rc5 {[%clk 0:00:51.3]} 35... Rb6 {[%clk 0:00:19.6]} 36. Rb5 {[%clk 0:00:46.7]}
36... Rc8 {[%clk 0:00:18.8]} 37. Rxb6+ {[%clk 0:00:46.8]} 37... axb6 {[%clk
0:00:19.7]} 38. Qb4 {[%clk 0:00:45.1]} 38... Rc7 {[%clk 0:00:15.4]} 39. Qd6
{[%clk 0:00:45]} 39... Rd7 {[%clk 0:00:14.6]} 40. Qe5 {[%clk 0:00:44.9]} 40...
Ka6 {[%clk 0:00:07.3]} 41. Qxg5 {[%clk 0:00:44.6]} 41... Kb5 {[%clk 0:00:07.3]}
42. Qxh4 {[%clk 0:00:42.2]} 42... Kc4 {[%clk 0:00:07.4]} 43. Kc2 {[%clk
0:00:37.1]} 43... Rc7 {[%clk 0:00:07.1]} 44. Qf2 {[%clk 0:00:35.2]} 44... Kb5+
{[%clk 0:00:06.4]} 45. Kb3 {[%clk 0:00:32.9]} 45... Rc4 {[%clk 0:00:05.4]} 46.
h4 {[%clk 0:00:31.3]} 46... Bd7 {[%clk 0:00:05.6]} 47. h5 {[%clk 0:00:30.4]}
47... Ka5 {[%clk 0:00:05.4]} 48. Qd2+ {[%clk 0:00:29.3]} 48... Ka6 {[%clk
0:00:05.7]} 49. Ka2 {[%clk 0:00:26.7]} 49... Rc6 {[%clk 0:00:03.1]} 50. Qb4
{[%clk 0:00:23.9]} 50... b5 {[%clk 0:00:03.2]} 51. Qe7 {[%clk 0:00:23.6]} 51...
Be6 {[%clk 0:00:03.4]} 52. h6 {[%clk 0:00:23.4]} 52... Bxg4 {[%clk 0:00:03.1]}
53. fxg4 {[%clk 0:00:22.5]} 53... Rxh6 {[%clk 0:00:02.5]} 54. Qxf7 {[%clk
0:00:22.7]} 54... Rh2 {[%clk 0:00:02.4]} 55. g5 {[%clk 0:00:22.1]} 55... Rg2
{[%clk 0:00:01.9]} 56. g6 {[%clk 0:00:22.5]} 56... b4 {[%clk 0:00:02.1]} 57.
axb4 {[%clk 0:00:21.4]} 57... Rg3 {[%clk 0:00:01.8]} 58. g7 {[%clk 0:00:21.3]}
58... Rxg7 {[%clk 0:00:02.7]} 59. Qxg7 {[%clk 0:00:21.1]} 59... Kb5 {[%clk
0:00:03.6]} 60. Qe5 {[%clk 0:00:21.2]} 60... Kb6 {[%clk 0:00:04.5]} 61. Qxd5
{[%clk 0:00:21.3]} 61... Kc7 {[%clk 0:00:05.4]} 62. Qc5+ {[%clk 0:00:21.4]}
62... Kb7 {[%clk 0:00:05.6]} 63. d5 {[%clk 0:00:21.3]} 63... Kb8 {[%clk
0:00:06.5]} 64. d6 {[%clk 0:00:21.5]} 64... Ka8 {[%clk 0:00:05.9]} 65. d7 {[%clk
0:00:21.3]} 65... Kb7 {[%clk 0:00:06.5]} 66. d8=Q {[%clk 0:00:20.7]} 66... Ka6
{[%clk 0:00:07.4]} 67. Qdb6# {[%clk 0:00:20.9]} 1-0

[Event "Early-Titled-Tuesday-Blitz-January-16-2024"]
[Site "Chess.com"]
[Date "2024.01.16"]
[Round "11"]
[White "Chempiblinka"]
[Black "santosalberto1987"]
[Result "0-1"]
[WhiteElo "2301"]
[BlackElo "2508"]
[TimeControl "180+1"]
[EndTime "10:10:29 PST"]
[Termination "santosalberto1987 won on time"]

1. Nf3 {[%clk 0:03:00.9]} 1... Nf6 {[%clk 0:02:59.9]} 2. g3 {[%clk 0:03:01.3]}
2... g6 {[%clk 0:02:58.6]} 3. Bg2 {[%clk 0:03:00.4]} 3... d6 {[%clk 0:02:59]} 4.
O-O {[%clk 0:03:00.4]} 4... Bg7 {[%clk 0:02:58.9]} 5. c4 {[%clk 0:02:56.2]} 5...
O-O {[%clk 0:02:57.4]} 6. d4 {[%clk 0:02:56.4]} 6... Bf5 {[%clk 0:02:56]} 7. Nc3
{[%clk 0:02:53.3]} 7... Ne4 {[%clk 0:02:48.5]} 8. Qb3 {[%clk 0:02:32.9]} 8...
Qc8 {[%clk 0:02:41.5]} 9. Nh4 {[%clk 0:02:22.5]} 9... Nxc3 {[%clk 0:02:32.8]}
10. bxc3 {[%clk 0:02:23.4]} 10... Nc6 {[%clk 0:02:18.8]} 11. Nxf5 {[%clk
0:02:21.2]} 11... gxf5 {[%clk 0:02:16.1]} 12. Rb1 {[%clk 0:02:07.4]} 12... Rb8
{[%clk 0:02:11.5]} 13. Bg5 {[%clk 0:01:44.7]} 13... e6 {[%clk 0:02:07.7]} 14. e4
{[%clk 0:01:30.8]} 14... fxe4 {[%clk 0:02:03.9]} 15. Bxe4 {[%clk 0:01:31.7]}
15... Na5 {[%clk 0:01:51.4]} 16. Qa4 {[%clk 0:01:20.8]} 16... b6 {[%clk
0:01:50.3]} 17. c5 {[%clk 0:01:16.8]} 17... Qe8 {[%clk 0:01:28.7]} 18. Qxe8
{[%clk 0:00:43.8]} 18... Rfxe8 {[%clk 0:01:28.2]} 19. cxd6 {[%clk 0:00:44.7]}
19... cxd6 {[%clk 0:01:28.1]} 20. Bf4 {[%clk 0:00:37.5]} 20... Bf8 {[%clk
0:01:21.6]} 21. Rfc1 {[%clk 0:00:32.9]} 21... Rbc8 {[%clk 0:01:21.5]} 22. Bd3
{[%clk 0:00:31.6]} 22... d5 {[%clk 0:01:19.6]} 23. Bb5 {[%clk 0:00:31.5]} 23...
Nc6 {[%clk 0:01:02.3]} 24. c4 {[%clk 0:00:28.9]} 24... Nxd4 {[%clk 0:00:56.9]}
25. Bxe8 {[%clk 0:00:25]} 25... Ne2+ {[%clk 0:00:56.9]} 26. Kf1 {[%clk
0:00:22.1]} 26... Nxc1 {[%clk 0:00:57.2]} 27. cxd5 {[%clk 0:00:18.4]} 27... Rxe8
{[%clk 0:00:35.1]} 28. Rxc1 {[%clk 0:00:17.2]} 28... exd5 {[%clk 0:00:35.3]} 29.
Rc7 {[%clk 0:00:17.4]} 29... Re7 {[%clk 0:00:30.4]} 30. Rc8 {[%clk 0:00:16.6]}
30... f6 {[%clk 0:00:27.3]} 31. Bh6 {[%clk 0:00:15.1]} 31... Rf7 {[%clk
0:00:26.7]} 32. Rd8 {[%clk 0:00:14.9]} 32... f5 {[%clk 0:00:25]} 33. f4 {[%clk
0:00:12.1]} 33... Rf6 {[%clk 0:00:23.9]} 34. Bg5 {[%clk 0:00:08.9]} 34... Rd6
{[%clk 0:00:20.4]} 35. Re8 {[%clk 0:00:06.9]} 35... Kf7 {[%clk 0:00:20.4]} 36.
Ra8 {[%clk 0:00:06.4]} 36... Rd7 {[%clk 0:00:19.9]} 37. Ke2 {[%clk 0:00:05]}
37... d4 {[%clk 0:00:19.5]} 38. Kd3 {[%clk 0:00:05.5]} 38... Be7 {[%clk
0:00:19.5]} 39. Rc8 {[%clk 0:00:06.1]} 39... Bxg5 {[%clk 0:00:19.5]} 40. fxg5
{[%clk 0:00:07]} 40... Kg6 {[%clk 0:00:19.6]} 41. h4 {[%clk 0:00:07.5]} 41...
Kh5 {[%clk 0:00:18.6]} 42. Rg8 {[%clk 0:00:07.1]} 42... Kg4 {[%clk 0:00:18.4]}
43. Rf8 {[%clk 0:00:07.2]} 43... Rd5 {[%clk 0:00:17.6]} 44. Rf7 {[%clk
0:00:06.8]} 44... Kxg3 {[%clk 0:00:16.6]} 45. h5 {[%clk 0:00:06.6]} 45... Rd6
{[%clk 0:00:15.1]} 46. g6 {[%clk 0:00:07.1]} 46... hxg6 {[%clk 0:00:15.2]} 47.
h6 {[%clk 0:00:08]} 47... g5 {[%clk 0:00:13.8]} 48. h7 {[%clk 0:00:08.4]} 48...
Rh6 {[%clk 0:00:13.6]} 49. Rxf5 {[%clk 0:00:09.1]} 49... g4 {[%clk 0:00:13.6]}
50. Rf7 {[%clk 0:00:08.3]} 50... Kg2 {[%clk 0:00:13]} 51. Kxd4 {[%clk
0:00:08.7]} 51... a5 {[%clk 0:00:12.8]} 52. Rg7 {[%clk 0:00:09.1]} 52... g3
{[%clk 0:00:12.9]} 53. Ke3 {[%clk 0:00:09.4]} 53... Kh2 {[%clk 0:00:12.8]} 54.
Kf3 {[%clk 0:00:09.5]} 54... Rf6+ {[%clk 0:00:12.1]} 55. Ke3 {[%clk 0:00:09.5]}
55... Rh6 {[%clk 0:00:11.9]} 56. Kf3 {[%clk 0:00:09.8]} 56... b5 {[%clk
0:00:11.5]} 57. a3 {[%clk 0:00:04.7]} 57... b4 {[%clk 0:00:11.2]} 58. axb4
{[%clk 0:00:05.6]} 58... axb4 {[%clk 0:00:11.8]} 59. Rg8 {[%clk 0:00:01.4]}
59... Rxh7 {[%clk 0:00:11.2]} 60. Rxg3 {[%clk 0:00:01.4]} 60... Rf7+ {[%clk
0:00:11.2]} 61. Ke3 {[%clk 0:00:01.4]} 61... Kxg3 {[%clk 0:00:11]} 0-1